fUST/lending_fUST_20240410
["ID","MTS","AMOUNT","RATE_DAILY","PERIOD"]
[322043354,1712716239227,-625.13,0.00023013,2]
[322043355,1712716239236,-500.0,0.00023013,2]
[322043356,1712716239245,-500.0,0.00023013,2]
[322043357,1712716239254,-2032.41,0.00023013,2]
[322043358,1712716239263,-500.0,0.00023013,2]
[322043359,1712716239272,-500.0,0.00023013,2]
[322043360,1712716239282,-806.25,0.00023013,2]
[322043361,1712716239291,-581.97,0.00023013,2]
[322043362,1712716239300,-500.0,0.00023013,2]
[322043363,1712716239309,-5947.69,0.00023013,2]
[322043364,1712716239318,-500.0,0.00023013,2]
[322043365,1712716239328,-995.28,0.00023013,2]
[322043366,1712716239337,-965.33,0.00023013,2]
[322043367,1712716239346,-546.16,0.00023013,2]
[322043368,1712716239355,-500.0,0.00023013,2]
[322043369,1712716239364,-1234.85,0.00023013,2]
[322043370,1712716239373,-500.0,0.00023013,2]
[322043371,1712716239381,-500.0,0.00023013,2]
[322043372,1712716239391,-230.37608815,0.00023013,2]
[322043373,1712716239400,-5399.24,0.00023013,2]
[322043374,1712716239409,-521.71,0.00023013,2]
[322043375,1712716239418,-634.7734702,0.00023013,2]
[322043376,1712716239428,-1504.46,0.00023013,2]
[322043377,1712716239437,-500.0,0.00023013,2]
[322043378,1712716239446,-500.0,0.00023013,2]
[322043379,1712716239455,-157.69929916,0.00023013,2]
[322043380,1712716239464,-843.12,0.00023013,2]
[322043381,1712716239474,-500.0,0.00023013,2]
[322043382,1712716239483,-500.0,0.00023013,2]
[322043383,1712716239492,-500.0,0.00023013,2]
[322043384,1712716239502,-2549.28,0.00023013,2]
[322043385,1712716239510,-857.5,0.00023013,2]
[322043386,1712716239520,-1318.56,0.00023013,2]
[322043387,1712716239529,-500.0,0.00023013,2]
[322043388,1712716239539,-157.54768451,0.00023187,2]
[322043389,1712716239548,-425.82148711,0.00023286,2]
[322043390,1712716239557,-500.0,0.00023287,2]
[322043391,1712716239566,-500.0,0.00023287,2]
[322043392,1712716239575,-500.0,0.00023287,2]
[322043393,1712716239584,-500.0,0.00023287,2]
[322043394,1712716239593,-302.53391369,0.00023287,2]
[322043395,1712716239602,-500.0,0.00023287,2]
[322043396,1712716239611,-213.78210281,0.00023287,2]
[322043397,1712716239620,-223.66095128,0.00023287,2]
[322043398,1712716239630,-500.0,0.00023287,2]
[322043399,1712716239639,-603.63,0.00023287,2]
[322043400,1712716239647,-500.0,0.00023287,2]
[322043401,1712716239657,-500.0,0.00023287,2]
[322043402,1712716239666,-517.88,0.00023287,2]
[322043403,1712716239675,-500.0,0.00023287,2]
[322043404,1712716239684,-500.0,0.00023287,2]
[322043405,1712716239692,-500.0,0.00023287,2]
[322043407,1712716239701,-500.0,0.00023287,2]
[322043409,1712716239710,-500.0,0.00023287,2]
[322043410,1712716239719,-781.33,0.00023287,2]
[322043411,1712716239728,-1218.25,0.00023287,2]
[322043412,1712716239737,-500.0,0.00023287,2]
[322043413,1712716239746,-500.0,0.00023287,2]
[322043414,1712716239756,-537.86,0.00023287,2]
[322043415,1712716239765,-500.0,0.00023287,2]
[322043416,1712716239775,-2455.45,0.00023287,2]
[322043417,1712716239783,-432.81200396,0.00023287,2]
[322043419,1712716239792,-1183.76,0.00023287,2]
[322043421,1712716239801,-625.13,0.00023287,2]
[322043423,1712716239810,-500.0,0.00023287,2]
[322043425,1712716239819,-500.0,0.00023287,2]
[322043427,1712716239830,-2032.41,0.00023287,2]
[322043429,1712716239839,-500.0,0.00023287,2]
[322043433,1712716239853,-500.0,0.00023287,2]
[322043435,1712716239865,-581.97,0.00023287,2]
[322043437,1712716239877,-806.25,0.00023287,2]
[322043440,1712716239889,-500.0,0.00023287,2]
[322043441,1712716239900,-5947.69,0.00023287,2]
[322043442,1712716239911,-500.0,0.00023287,2]
[322043443,1712716239922,-995.28,0.00023287,2]
[322043444,1712716239932,-965.33,0.00023287,2]
[322043445,1712716239944,-546.16,0.00023287,2]
[322043446,1712716239955,-500.0,0.00023287,2]
[322043447,1712716239967,-1234.85,0.00023287,2]
[322043448,1712716239978,-500.0,0.00023287,2]
[322043449,1712716239990,-500.0,0.00023287,2]
[322043450,1712716240001,-5399.24,0.00023287,2]
[322043451,1712716240013,-521.71,0.00023287,2]
[322043452,1712716240024,-1504.46,0.00023287,2]
[322043453,1712716240035,-500.0,0.00023287,2]
[322043454,1712716240046,-500.0,0.00023287,2]
[322043455,1712716240055,-843.12,0.00023287,2]
[322043456,1712716240066,-164.45186258,0.00023287,2]
[322043457,1712716240077,-500.0,0.00023287,2]
[322043458,1712716240088,-500.0,0.00023287,2]
[322043459,1712716240102,-2549.28,0.00023287,2]
[322043460,1712716240117,-857.5,0.00023287,2]
[322043461,1712716240128,-1318.56,0.00023287,2]
[322043462,1712716240139,-500.0,0.00023287,2]
[322043463,1712716240151,-500.0,0.00023561,2]
[322043464,1712716240162,-500.0,0.00023561,2]
[322043465,1712716240176,-500.0,0.00023561,2]
[322043466,1712716240189,-500.0,0.00023561,2]
[322043468,1712716240199,-500.0,0.00023561,2]
[322043470,1712716240208,-500.0,0.00023561,2]
[322043472,1712716240221,-603.63,0.00023561,2]
[322043473,1712716240233,-500.0,0.00023561,2]
[322043474,1712716240245,-500.0,0.00023561,2]
[322043475,1712716240257,-517.88,0.00023561,2]
[322043477,1712716240270,-500.0,0.00023561,2]
[322043478,1712716240281,-492.53185764,0.00023561,2]
[322043479,1712716240294,-500.0,0.00023561,2]
[322043480,1712716240305,-500.0,0.00023561,2]
[322043481,1712716240315,-500.0,0.00023561,2]
[322043482,1712716240327,-781.33,0.00023561,2]
[322043483,1712716240339,-1218.25,0.00023561,2]
[322043484,1712716240351,-500.0,0.00023561,2]
[322043485,1712716240361,-500.0,0.00023561,2]
[322043486,1712716240373,-537.86,0.00023561,2]
[322043487,1712716240385,-364.89404807,0.00023561,2]
[322043488,1712716240397,-2455.45,0.00023561,2]
[322043489,1712716240409,-1183.76,0.00023561,2]
[322043490,1712716240421,-625.13,0.00023561,2]
[322043491,1712716240432,-223.80530051,0.00023561,2]
[322043492,1712716240443,-500.0,0.00023561,2]
[322043493,1712716240453,-2032.41,0.00023561,2]
[322043494,1712716240463,-500.0,0.00023561,2]
[322043495,1712716240473,-500.0,0.00023561,2]
[322043496,1712716240483,-581.97,0.00023561,2]
[322043497,1712716240493,-806.25,0.00023561,2]
[322043498,1712716240504,-500.0,0.00023561,2]
[322043499,1712716240515,-5947.69,0.00023561,2]
[322043500,1712716240526,-500.0,0.00023561,2]
[322043501,1712716240536,-995.28,0.00023561,2]
[322043502,1712716240546,-965.33,0.00023561,2]
[322043503,1712716240558,-546.16,0.00023561,2]
[322043504,1712716240569,-500.0,0.00023561,2]
[322043505,1712716240579,-1234.85,0.00023561,2]
[322043506,1712716240589,-500.0,0.00023561,2]
[322043507,1712716240599,-500.0,0.00023561,2]
[322043508,1712716240609,-2895.15403808,0.00023561,2]
[322043512,1712716243406,-308.63566867,0.00021817,2]
[322043513,1712716243416,-500.0,0.00021917,2]
[322043514,1712716243428,-500.27035429,0.00021917,2]
[322043515,1712716243438,-504.83901021,0.00021917,2]
[322043516,1712716243448,-174.856418,0.00021971,2]
[322043517,1712716243459,-500.0,0.00022191,2]
[322043518,1712716243469,-110.91811751,0.00022465,2]
[322043519,1712716243482,-373.29,0.00022465,2]
[322043520,1712716243495,-15.79188249,0.00022465,2]
[322043521,1712716243505,-355.74811751,0.00022739,2]
[322043522,1712716243520,-144.25188249,0.00022739,2]
[322043523,1712716243530,-465.94061919,0.00023013,2]
[322043538,1712716713747,-687.372286,0.0002091,2]
[322043539,1712716713774,-548.90126628,0.00020911,2]
[322043540,1712716713802,-227.098046,0.00020913,2]
[322043541,1712716713828,-150.0,0.00021187,2]
[322043542,1712716713855,-312.43105061,0.00021817,2]
[322043543,1712716713882,-300.0,0.00021916,2]
[322043544,1712716713910,-300.0,0.00021916,2]
[322043545,1712716713937,-494.23625961,0.00021917,2]
[322043546,1712716713965,-500.0,0.00021917,2]
[322043547,1712716714125,-307.88566827,0.00021917,2]
[322043548,1712716714152,-500.0,0.00021917,2]
[322043549,1712716714177,-255.76883471,0.00021917,2]
[322043550,1712716714202,-500.0,0.00021917,2]
[322043551,1712716714230,-270.56145077,0.00021917,2]
[322043552,1712716714254,-387.364157,0.00021917,2]
[322043553,1712716714284,-500.0,0.00021917,2]
[322043554,1712716714310,-500.0,0.00021917,2]
[322043555,1712716714336,-518.67201066,0.00021917,2]
[322043556,1712716714361,-500.0,0.00021917,2]
[322043557,1712716714386,-500.0,0.00021917,2]
[322043558,1712716714412,-500.0,0.00021917,2]
[322043559,1712716714437,-500.0,0.00021917,2]
[322043560,1712716714461,-500.0,0.00021917,2]
[322043561,1712716714487,-500.0,0.00021917,2]
[322043562,1712716714512,-500.0,0.00021917,2]
[322043563,1712716714539,-311.46888922,0.00021917,2]
[322043564,1712716714565,-500.0,0.00021917,2]
[322043565,1712716714590,-500.0,0.00021917,2]
[322043566,1712716714615,-248.45908726,0.00021917,2]
[322043567,1712716714641,-500.0,0.00021917,2]
[322043568,1712716714665,-500.0,0.00021917,2]
[322043569,1712716714691,-500.0,0.00021917,2]
[322043570,1712716714715,-500.0,0.00021917,2]
[322043571,1712716714739,-500.0,0.00021917,2]
[322043572,1712716714764,-500.0,0.00021917,2]
[322043573,1712716714790,-500.0,0.00021917,2]
[322043574,1712716714815,-1943.9,0.00021917,2]
[322043575,1712716714839,-207.23266716,0.00021917,2]
[322043576,1712716714864,-500.0,0.00021917,2]
[322043577,1712716714889,-500.0,0.00021917,2]
[322043578,1712716714914,-937.14,0.00021917,2]
[322043579,1712716714940,-4708.58,0.00021917,2]
[322043580,1712716714965,-500.0,0.00021917,2]
[322043581,1712716714991,-500.0,0.00021917,2]
[322043582,1712716715016,-913.69,0.00021917,2]
[322043583,1712716715045,-586.0,0.00021917,2]
[322043584,1712716715072,-500.0,0.00021917,2]
[322043585,1712716715099,-500.0,0.00021917,2]
[322043586,1712716715125,-500.0,0.00021917,2]
[322043587,1712716715151,-500.0,0.00021917,2]
[322043588,1712716715177,-977.59,0.00021917,2]
[322043589,1712716715202,-500.0,0.00021917,2]
[322043590,1712716715232,-500.0,0.00021917,2]
[322043591,1712716715262,-787.93,0.00021917,2]
[322043592,1712716715291,-500.0,0.00021917,2]
[322043593,1712716715318,-500.0,0.00021917,2]
[322043594,1712716715345,-764.22,0.00021917,2]
[322043595,1712716715376,-500.0,0.00021917,2]
[322043596,1712716715404,-500.0,0.00021917,2]
[322043597,1712716715431,-500.0,0.00021917,2]
[322043598,1712716715455,-403.38533834,0.00021917,2]
[322043599,1712716715481,-500.0,0.00021917,2]
[322043600,1712716715506,-500.0,0.00021917,2]
[322043601,1712716715532,-500.0,0.00021917,2]
[322043602,1712716715561,-500.0,0.00021917,2]
[322043603,1712716715587,-500.0,0.00021917,2]
[322043604,1712716715614,-432.81200396,0.00021917,2]
[322043605,1712716715641,-4049.43,0.00021917,2]
[322043606,1712716715667,-500.0,0.00021917,2]
[322043607,1712716715694,-667.47,0.00021917,2]
[322043608,1712716715720,-364.89404807,0.00021917,2]
[322043609,1712716715747,-1191.03,0.00021917,2]
[322043610,1712716715776,-501.8493794,0.00021917,2]
[322043611,1712716715802,-500.0,0.00021917,2]
[322043612,1712716715828,-638.28,0.00021917,2]
[322043613,1712716715854,-164.45186258,0.00021917,2]
[322043614,1712716715880,-500.0,0.00021917,2]
[322043615,1712716715906,-1043.86,0.00021917,2]
[322043616,1712716715931,-503.35572313,0.00021999,2]
[322043617,1712716715957,-3719.10840679,0.00022,2]
[322043618,1712716715985,-500.0,0.00022191,2]
[322043619,1712716716012,-500.0,0.00022191,2]
[322043620,1712716716039,-500.0,0.00022191,2]
[322043621,1712716716167,-500.0,0.00022191,2]
[322043622,1712716716199,-500.0,0.00022191,2]
[322043623,1712716716227,-512.47887145,0.00022191,2]
[322043624,1712716716254,-500.0,0.00022191,2]
[322043625,1712716716282,-500.0,0.00022191,2]
[322043626,1712716716310,-1943.9,0.00022191,2]
[322043627,1712716716337,-500.0,0.00022191,2]
[322043628,1712716716365,-937.14,0.00022191,2]
[322043629,1712716716393,-4708.58,0.00022191,2]
[322043630,1712716716420,-500.0,0.00022191,2]
[322043631,1712716716446,-913.69,0.00022191,2]
[322043632,1712716716471,-586.0,0.00022191,2]
[322043633,1712716716498,-500.0,0.00022191,2]
[322043634,1712716716524,-181.33849506,0.00022191,2]
[322043635,1712716716551,-500.0,0.00022191,2]
[322043636,1712716716578,-500.0,0.00022191,2]
[322043637,1712716716606,-977.59,0.00022191,2]
[322043638,1712716717599,-500.0,0.00022191,2]
[322043639,1712716717634,-500.0,0.00022191,2]
[322043640,1712716717664,-787.93,0.00022191,2]
[322043641,1712716718199,-500.0,0.00022191,2]
[322043642,1712716718230,-223.80530051,0.00022191,2]
[322043643,1712716718258,-764.22,0.00022191,2]
[322043644,1712716718292,-500.0,0.00022191,2]
[322043645,1712716718320,-500.0,0.00022191,2]
[322043646,1712716718347,-500.0,0.00022191,2]
[322043647,1712716718375,-500.0,0.00022191,2]
[322043648,1712716718402,-500.0,0.00022191,2]
[322043649,1712716718428,-500.0,0.00022191,2]
[322043650,1712716718456,-500.0,0.00022191,2]
[322043651,1712716718484,-4049.43,0.00022191,2]
[322043652,1712716718510,-500.0,0.00022191,2]
[322043653,1712716718540,-667.47,0.00022191,2]
[322043654,1712716718569,-1191.03,0.00022191,2]
[322043655,1712716718598,-500.0,0.00022191,2]
[322043656,1712716718625,-638.28,0.00022191,2]
[322043657,1712716718652,-500.0,0.00022191,2]
[322043658,1712716718679,-1043.86,0.00022191,2]
[322043659,1712716718705,-1609.0,0.00022464,2]
[322043660,1712716718732,-500.0,0.00022464,2]
[322043661,1712716718757,-500.0,0.00022464,2]
[322043662,1712716718784,-2018.18,0.00022464,2]
[322043663,1712716718811,-678.85,0.00022464,2]
[322043664,1712716718846,-500.0,0.00022465,2]
[322043665,1712716718872,-500.0,0.00022465,2]
[322043666,1712716718898,-500.0,0.00022465,2]
[322043667,1712716718924,-357.24744185,0.00022465,2]
[322043668,1712716718950,-500.0,0.00022465,2]
[322043669,1712716718975,-500.0,0.00022465,2]
[322043670,1712716719001,-500.0,0.00022465,2]
[322043671,1712716719029,-1943.9,0.00022465,2]
[322043672,1712716719055,-500.0,0.00022465,2]
[322043673,1712716719081,-937.14,0.00022465,2]
[322043674,1712716719108,-4708.58,0.00022465,2]
[322043675,1712716719134,-500.0,0.00022465,2]
[322043676,1712716719160,-913.69,0.00022465,2]
[322043677,1712716719185,-586.0,0.00022465,2]
[322043678,1712716719211,-500.0,0.00022465,2]
[322043679,1712716719238,-500.0,0.00022465,2]
[322043680,1712716719263,-500.0,0.00022465,2]
[322043681,1712716719291,-977.59,0.00022465,2]
[322043682,1712716719318,-500.0,0.00022465,2]
[322043683,1712716719343,-500.0,0.00022465,2]
[322043684,1712716719369,-787.93,0.00022465,2]
[322043685,1712716719395,-500.0,0.00022465,2]
[322043686,1712716719421,-764.22,0.00022465,2]
[322043687,1712716719447,-500.0,0.00022465,2]
[322043688,1712716719473,-500.0,0.00022465,2]
[322043689,1712716719499,-500.0,0.00022465,2]
[322043690,1712716719527,-500.0,0.00022465,2]
[322043691,1712716719553,-500.0,0.00022465,2]
[322043692,1712716719579,-500.0,0.00022465,2]
[322043693,1712716719605,-500.0,0.00022465,2]
[322043694,1712716719631,-4049.43,0.00022465,2]
[322043695,1712716719746,-555.70180473,0.00022465,2]
[322043696,1712716719774,-667.47,0.00022465,2]
[322043697,1712716719799,-1191.03,0.00022465,2]
[322043698,1712716719824,-500.0,0.00022465,2]
[322043699,1712716719849,-638.28,0.00022465,2]
[322043700,1712716719873,-500.0,0.00022465,2]
[322043701,1712716719900,-1043.86,0.00022465,2]
[322043702,1712716719926,-1609.0,0.00022738,2]
[322043703,1712716719952,-500.0,0.00022738,2]
[322043704,1712716719977,-500.0,0.00022738,2]
[322043705,1712716720003,-2018.18,0.00022738,2]
[322043706,1712716720029,-678.85,0.00022738,2]
[322043707,1712716720058,-30348.23192574,0.00022739,2]
[322043708,1712716720084,-500.0,0.00022739,2]
[322043709,1712716720109,-211.1111125,0.00022739,2]
[322043710,1712716720134,-242.11611274,0.00022739,2]
[322043711,1712716720159,-422.4181922,0.00022739,2]
[322043712,1712716720184,-500.0,0.00022739,2]
[322043713,1712716720209,-500.0,0.00022739,2]
[322043714,1712716720235,-1943.9,0.00022739,2]
[322043715,1712716720262,-500.0,0.00022739,2]
[322043716,1712716720287,-937.14,0.00022739,2]
[322043717,1712716720314,-4708.58,0.00022739,2]
[322043718,1712716720340,-500.0,0.00022739,2]
[322043719,1712716720365,-913.69,0.00022739,2]
[322043720,1712716720390,-586.0,0.00022739,2]
[322043721,1712716720419,-500.0,0.00022739,2]
[322043722,1712716720445,-500.0,0.00022739,2]
[322043723,1712716720471,-500.0,0.00022739,2]
[322043724,1712716720496,-977.59,0.00022739,2]
[322043725,1712716720522,-500.0,0.00022739,2]
[322043726,1712716720550,-500.0,0.00022739,2]
[322043727,1712716720576,-787.93,0.00022739,2]
[322043728,1712716720601,-500.0,0.00022739,2]
[322043729,1712716720626,-764.22,0.00022739,2]
[322043730,1712716720650,-500.0,0.00022739,2]
[322043731,1712716720676,-500.0,0.00022739,2]
[322043732,1712716720701,-500.0,0.00022739,2]
[322043733,1712716720726,-500.0,0.00022739,2]
[322043734,1712716720751,-500.0,0.00022739,2]
[322043735,1712716720776,-500.0,0.00022739,2]
[322043736,1712716720801,-500.0,0.00022739,2]
[322043737,1712716720826,-4049.43,0.00022739,2]
[322043738,1712716720851,-667.47,0.00022739,2]
[322043739,1712716720875,-1191.03,0.00022739,2]
[322043740,1712716720903,-270.01442748,0.00022739,2]
[322043741,1712716720928,-638.28,0.00022739,2]
[322043742,1712716720954,-500.0,0.00022739,2]
[322043743,1712716720980,-1043.86,0.00022739,2]
[322043744,1712716721005,-1609.0,0.00023012,2]
[322043745,1712716721031,-500.0,0.00023012,2]
[322043746,1712716721056,-500.0,0.00023012,2]
[322043747,1712716721081,-2018.18,0.00023012,2]
[322043748,1712716721107,-678.85,0.00023012,2]
[322043749,1712716721133,-34.05938081,0.00023013,2]
[322043750,1712716721160,-500.0,0.00023013,2]
[322043751,1712716721185,-500.0,0.00023013,2]
[322043752,1712716721211,-500.0,0.00023013,2]
[322043753,1712716721239,-1943.9,0.00023013,2]
[322043754,1712716721265,-500.0,0.00023013,2]
[322043755,1712716721293,-937.14,0.00023013,2]
[322043756,1712716721319,-4708.58,0.00023013,2]
[322043757,1712716721345,-500.0,0.00023013,2]
[322043758,1712716721370,-913.69,0.00023013,2]
[322043759,1712716721396,-586.0,0.00023013,2]
[322043760,1712716721423,-500.0,0.00023013,2]
[322043761,1712716721449,-500.0,0.00023013,2]
[322043762,1712716721476,-500.0,0.00023013,2]
[322043763,1712716721502,-977.59,0.00023013,2]
[322043764,1712716721530,-500.0,0.00023013,2]
[322043765,1712716721557,-500.0,0.00023013,2]
[322043766,1712716721584,-787.93,0.00023013,2]
[322043767,1712716721609,-500.0,0.00023013,2]
[322043768,1712716721633,-764.22,0.00023013,2]
[322043769,1712716721659,-500.0,0.00023013,2]
[322043770,1712716721805,-639.43348906,0.00023013,2]
[322043771,1712716721833,-500.0,0.00023013,2]
[322043772,1712716721858,-500.0,0.00023013,2]
[322043773,1712716721883,-500.0,0.00023013,2]
[322043774,1712716721909,-500.0,0.00023013,2]
[322043775,1712716721935,-500.0,0.00023013,2]
[322043776,1712716721961,-4049.43,0.00023013,2]
[322043777,1712716721986,-667.47,0.00023013,2]
[322043778,1712716722013,-1191.03,0.00023013,2]
[322043779,1712716722039,-638.28,0.00023013,2]
[322043780,1712716722064,-500.0,0.00023013,2]
[322043781,1712716722090,-1043.86,0.00023013,2]
[322043782,1712716722116,-1609.0,0.00023286,2]
[322043783,1712716722142,-500.0,0.00023286,2]
[322043784,1712716722169,-500.0,0.00023286,2]
[322043785,1712716722201,-2018.18,0.00023286,2]
[322043786,1712716722227,-678.85,0.00023286,2]
[322043787,1712716722255,-500.0,0.00023287,2]
[322043788,1712716722284,-500.0,0.00023287,2]
[322043789,1712716722312,-500.0,0.00023287,2]
[322043790,1712716722339,-500.0,0.00023287,2]
[322043791,1712716722366,-1943.9,0.00023287,2]
[322043792,1712716722391,-500.0,0.00023287,2]
[322043793,1712716722418,-937.14,0.00023287,2]
[322043794,1712716722492,-4708.58,0.00023287,2]
[322043795,1712716722519,-500.0,0.00023287,2]
[322043796,1712716722548,-913.69,0.00023287,2]
[322043797,1712716722574,-586.0,0.00023287,2]
[322043798,1712716722601,-500.0,0.00023287,2]
[322043799,1712716722630,-500.0,0.00023287,2]
[322043800,1712716722658,-500.0,0.00023287,2]
[322043801,1712716722689,-977.59,0.00023287,2]
[322043802,1712716722717,-500.0,0.00023287,2]
[322043803,1712716722744,-500.0,0.00023287,2]
[322043804,1712716722772,-787.93,0.00023287,2]
[322043805,1712716722800,-500.0,0.00023287,2]
[322043806,1712716722826,-764.22,0.00023287,2]
[322043807,1712716722852,-500.0,0.00023287,2]
[322043808,1712716722879,-500.0,0.00023287,2]
[322043809,1712716722908,-500.0,0.00023287,2]
[322043810,1712716722936,-500.0,0.00023287,2]
[322043811,1712716722963,-500.0,0.00023287,2]
[322043812,1712716722990,-500.0,0.00023287,2]
[322043813,1712716723019,-4049.43,0.00023287,2]
[322043814,1712716723048,-667.47,0.00023287,2]
[322043815,1712716723074,-1191.03,0.00023287,2]
[322043816,1712716723099,-638.28,0.00023287,2]
[322043817,1712716723126,-500.0,0.00023287,2]
[322043818,1712716723155,-1043.86,0.00023287,2]
[322043819,1712716723183,-1609.0,0.0002356,2]
[322043820,1712716723210,-500.0,0.0002356,2]
[322043821,1712716723240,-500.0,0.0002356,2]
[322043822,1712716723268,-2018.18,0.0002356,2]
[322043824,1712716723295,-678.85,0.0002356,2]
[322043825,1712716723320,-500.0,0.00023561,2]
[322043826,1712716723350,-500.0,0.00023561,2]
[322043827,1712716723376,-536.87109523,0.00023561,2]
[322043828,1712716723403,-510.23268842,0.00023561,2]
[322043829,1712716723428,-500.0,0.00023561,2]
[322043830,1712716723456,-500.0,0.00023561,2]
[322043831,1712716723483,-500.0,0.00023561,2]
[322043832,1712716723507,-500.0,0.00023561,2]
[322043833,1712716723534,-1943.9,0.00023561,2]
[322043834,1712716723560,-500.0,0.00023561,2]
[322043835,1712716723586,-937.14,0.00023561,2]
[322043836,1712716723613,-4708.58,0.00023561,2]
[322043837,1712716723639,-500.0,0.00023561,2]
[322043838,1712716723666,-913.69,0.00023561,2]
[322043839,1712716723692,-586.0,0.00023561,2]
[322043840,1712716723718,-500.0,0.00023561,2]
[322043841,1712716723744,-352.00592703,0.00023561,2]
[322043842,1712716723775,-500.0,0.00023561,2]
[322043843,1712716723803,-977.59,0.00023561,2]
[322043844,1712716723842,-500.0,0.00023561,2]
[322043845,1712716724000,-500.0,0.00023561,2]
[322043846,1712716724048,-787.93,0.00023561,2]
[322043847,1712716724074,-500.0,0.00023561,2]
[322043848,1712716724102,-764.22,0.00023561,2]
[322043849,1712716724129,-500.0,0.00023561,2]
[322043850,1712716724155,-500.0,0.00023561,2]
[322043851,1712716724182,-500.0,0.00023561,2]
[322043852,1712716724208,-212.50799518,0.00023561,2]
[322043853,1712716724235,-500.0,0.00023561,2]
[322043854,1712716724264,-500.0,0.00023561,2]
[322043855,1712716724293,-4049.43,0.00023561,2]
[322043856,1712716724320,-667.47,0.00023561,2]
[322043857,1712716724349,-1191.03,0.00023561,2]
[322043858,1712716724375,-638.28,0.00023561,2]
[322043859,1712716724404,-500.0,0.00023561,2]
[322043860,1712716724431,-1043.86,0.00023561,2]
[322043861,1712716724704,500.0,0.00021917,2]
[322043862,1712716727211,548.90126628,0.00021916,2]
[322043863,1712716730868,694.67753415,0.00023011,2]
[322043864,1712716733613,1273.79,0.00021917,2]
[322043865,1712716733897,1273.79,0.00022191,2]
[322043866,1712716734293,1273.79,0.00022465,2]
[322043867,1712716734626,1273.79,0.00022739,2]
[322043868,1712716734841,1273.79,0.00023013,2]
[322043869,1712716735120,166.59850376,0.00023287,2]
[322043872,1712717024594,-548.90126628,0.00021186,2]
[322043873,1712717024620,-150.0,0.00021187,2]
[322043874,1712717024647,-273.37716924,0.00021817,2]
[322043875,1712717024673,-300.0,0.00021914,2]
[322043876,1712717024699,-300.0,0.00021914,2]
[322043877,1712717024725,-478.25587925,0.00021915,2]
[322043878,1712717024752,-1871.94337562,0.00021915,2]
[322043879,1712717024777,-2130.90508459,0.00021915,2]
[322043880,1712717024802,-1938.84595948,0.00021915,2]
[322043881,1712717024828,-3335.25,0.00021917,2]
[322043882,1712717024854,-500.0,0.00021917,2]
[322043883,1712717024880,-500.0,0.00021917,2]
[322043884,1712717024906,-558.12,0.00021917,2]
[322043885,1712717024933,-500.0,0.00021917,2]
[322043886,1712717024961,-541.32,0.00021917,2]
[322043887,1712717024990,-500.0,0.00021917,2]
[322043888,1712717025015,-500.0,0.00021917,2]
[322043889,1712717025041,-500.0,0.00021917,2]
[322043890,1712717025067,-500.0,0.00021917,2]
[322043891,1712717025094,-500.0,0.00021917,2]
[322043892,1712717025119,-500.0,0.00021917,2]